bitfinex-derivatives/quotes_ETHF0:USTF0_20251203
["timestamp","ask_amount","ask_price","bid_price","bid_amount"]
[1764786907288,0.92295537,3134.7,3134.5,3.2078]
[1764786907289,1.9842,3134.6,3134.5,4.1233]
[1764786907491,1.9842,3134.6,3134.5,5.0909]
[1764786908185,3.2078,3135.1,3134.6,1.8831]
[1764786908393,0.9143,3135.5,3135.4,1.8831]
[1764786908895,1.9842,3135.5,3135.4,1.8831]
[1764786909391,0.91815468,3135.5,3135.4,1.88581367]
[1764786909895,0.9143,3136.5,3136.4,0.9676]
[1764786910091,1.9842,3136.2,3136.1,3.2078]
[1764786910285,3.36716,3136.9,3136.4,0.9155]
[1764786910490,1.9842,3136.2,3136.1,5.0909]
[1764786910690,1.9842,3136.2,3136.1,0.9155]
[1764786910890,1.9869593,3136.2,3136.1,0.9155]
[1764786911090,1.9869593,3136.2,3136.1,1.8831]
[1764786911291,0.0027593,3136.2,3136.1,5.0909]
[1764786912897,0.9170593,3136.2,3136.1,5.0909]
[1764786913595,1.9869593,3136.2,3136.1,5.0909]
[1764786914197,1.9869593,3136.2,3136.1,4.1233]
[1764786914393,1.9869593,3136.2,3136.1,0.9155]
[1764786914699,0.9143,3135.7,3135.6,5.0909]
[1764786914996,1.9842,3135.7,3135.6,5.0909]
[1764786915192,0.9143,3135.7,3135.6,5.0909]
[1764786915399,2.57,3136.0,3135.9,0.9155]
[1764786915598,1.9842,3135.7,3135.4,0.00271367]
[1764786915793,0.5858,3136.0,3135.4,0.00271367]
[1764786915794,2.57,3135.5,3135.4,0.00271367]
[1764786916293,43.37,3135.5,3135.4,0.00271367]
[1764786917395,43.37,3135.5,3135.4,1.88581367]
[1764786918096,43.37,3135.5,3135.4,0.91821367]
[1764786918498,43.37,3135.5,3135.4,1.88581367]
[1764786918699,2.57,3135.5,3135.4,1.88581367]
[1764786919399,3.2078,3135.8,3135.7,1.8831]
[1764786919400,5.192,3135.8,3135.7,1.8831]
[1764786920096,1.9842,3135.5,3135.4,1.88581367]
[1764786920298,2.57,3135.5,3135.4,0.91821367]
[1764786921101,5.192,3135.8,3135.7,1.8831]
[1764786921290,4.1221,3135.8,3135.7,1.8831]
[1764786921493,0.9143,3136.0,3135.9,1.8831]
[1764786921701,2.57,3136.0,3135.9,0.9155]
[1764786921994,2.57,3136.0,3135.9,1.8831]
[1764786922196,4.1248593,3136.2,3136.1,1.8831]
[1764786922597,5.1947593,3136.2,3136.1,1.8831]
[1764786922802,0.9143,3135.7,3135.6,5.0909]
[1764786922995,1.9842,3135.7,3135.6,5.0909]
[1764786923498,1.9842,3135.7,3135.6,3.2078]
[1764786924305,1.9842,3135.7,3135.6,4.1233]
[1764786924601,2.57,3136.0,3135.9,1.8831]
[1764786925404,1.9842,3135.7,3135.6,3.2078]
[1764786925899,1.9842,3135.5,3135.4,1.88581367]
[1764786926098,2.57,3135.5,3135.4,0.91821367]
[1764786926602,2.57,3135.5,3135.4,0.00271367]
[1764786929304,2.57,3134.5,3134.4,5.0909]
[1764786929500,0.5858,3135.0,3134.4,5.0909]
[1764786929906,40.8,3134.9,3134.8,0.9155]
[1764786930409,5.192,3135.1,3135.0,1.8831]
[1764786930608,4.1221,3135.1,3135.0,1.8831]
[1764786930801,45.992,3135.1,3135.0,1.8831]
[1764786931307,1.9842,3135.1,3135.0,1.8831]
[1764786931604,0.0047866,3135.2,3135.1,1.8831]
[1764786932000,0.9190866,3135.2,3135.1,1.8831]
[1764786932604,3.36722,3135.8,3134.8,3.21149098]
[1764786932605,1.9842,3135.8,3135.0,0.5835]
[1764786932795,1.9842,3135.8,3135.2,3.2078]
[1764786935705,40.8,3135.9,3135.2,5.0873]
[1764786935706,0.9143,3135.3,3135.2,5.0873]
[1764786936409,3.2078,3135.8,3135.2,5.0873]
[1764786936608,0.9004,3135.3,3135.2,5.0873]
[1764786939306,1.8431,3135.3,3135.2,4.9063]
[1764786941014,1.8431,3135.3,3135.2,3.2078]
[1764786941707,2.15050033,3135.3,3135.2,3.2078]
[1764786942406,1.6201,3134.9,3134.8,0.00369098]
[1764786942610,1.6201,3134.9,3134.8,0.84669098]
[1764786942811,1.92760955,3134.9,3134.8,1.70219098]
[1764786943012,1.92760955,3134.9,3134.8,0.84669098]
[1764786944115,1.92760955,3134.9,3134.8,0.00369098]
[1764786946116,1.92760955,3134.9,3134.8,0.16759098]
[1764786948213,1.92760955,3134.9,3134.8,1.86609098]
[1764786948420,1.92760955,3134.9,3134.8,1.01059098]
[1764786949018,1.92760955,3134.9,3134.8,1.86609098]
[1764786949825,1.92760955,3134.9,3134.8,1.01059098]
[1764786950119,1.92760955,3134.9,3134.8,0.16759098]
[1764786950321,1.92760955,3134.9,3134.8,1.01059098]
[1764786951024,1.92760955,3134.9,3134.8,0.16759098]
[1764786951215,1.92760955,3134.9,3134.8,1.01059098]
[1764786951822,1.92760955,3134.9,3134.8,1.86609098]
[1764786953024,1.92760955,3134.9,3134.8,0.16759098]
[1764786953224,1.92760955,3134.9,3134.8,1.01059098]
[1764786953721,1.92760955,3134.9,3134.8,0.16759098]
[1764786954118,1.92760955,3134.9,3134.8,1.01059098]
[1764786954320,3.19990137,3134.9,3134.8,1.01059098]
[1764786955026,3.19990137,3134.9,3134.8,0.16759098]
[1764786956023,5.13540955,3134.9,3134.8,0.16759098]
[1764786956620,45.93540955,3134.9,3134.8,0.16759098]
[1764786957319,46.09486955,3134.9,3134.8,0.16759098]
[1764786957520,2.89239182,3134.6,3134.5,0.0047866]
[1764786957725,3.19990137,3134.6,3134.5,0.0047866]
[1764786958425,3.19990137,3134.6,3134.5,0.00805227]
[1764786960419,1.92760955,3134.6,3134.5,0.00805227]
[1764786960722,1.6201,3134.1,3134.0,0.0138]
[1764786960925,1.6201,3134.1,3133.8,3.2078]
[1764786960926,1.6201,3133.4,3133.3,4.0508]
[1764786961122,1.6201,3133.4,3133.3,4.9063]
[1764786961324,0.8061,3133.4,3133.3,4.9063]
[1764786961624,0.8061,3133.4,3133.3,4.05422905]
[1764786961625,1.62358056,3133.4,3133.3,4.05422905]
[1764786962224,1.62358056,3133.4,3133.3,4.90972905]
[1764786964220,1.62358056,3133.4,3133.3,3.21122905]
[1764786964421,1.62358056,3133.4,3133.3,3.95852905]
[1764786964823,1.62358056,3133.4,3133.3,3.21122905]
[1764786965121,1.62358056,3133.4,3133.3,0.00342905]
[1764786966227,1.62358056,3133.4,3133.3,0.75072905]
[1764786966728,1.62358056,3133.4,3133.3,1.63572905]
[1764786967126,1.62358056,3133.4,3133.3,0.00342905]
[1764786976932,1.62358056,3133.4,3133.1,3.2078]
[1764786976933,1.5908,3133.2,3133.1,3.2078]
[1764786977334,1.5908,3133.2,3133.1,4.8401]
[1764786977932,1.61934174,3133.2,3133.1,4.84415885]
[1764786981728,1.61934174,3133.2,3133.1,1.63635885]
[1764786985945,0.77884174,3133.2,3133.1,1.63635885]
[1764786986533,1.61934174,3133.2,3133.1,0.00405885]
[1764786986735,1.5908,3132.9,3132.8,0.0039]
[1764786986949,1.5908,3132.7,3132.6,3.2078]
[1764786987142,1.89848766,3132.7,3132.6,3.2078]
[1764786987342,42.69848766,3132.7,3132.6,3.2078]
[1764786987641,42.69848766,3132.7,3132.6,3.21153819]
[1764786987851,42.7270294,3132.7,3132.6,3.21153819]
[1764786988947,1.5908,3132.4,3132.3,0.0047866]
[1764786989243,3.17190808,3132.4,3132.3,0.0047866]
[1764786990044,3.20044982,3132.4,3132.3,0.00772137]
[1764786990242,3.20044982,3132.4,3131.5,1.14602237]
[1764786990243,1.0001,3132.2,3131.5,1.14602237]
[1764786990553,0.7503,3131.2,3131.1,4.8401]
[1764786990746,0.4769,3131.5,3131.1,4.8401]
[1764786990747,1.5908,3131.5,3131.4,1.6323]
[1764786990943,2.44484499,3131.5,3131.4,1.6323]
[1764786991444,2.44899356,3131.5,3131.4,1.63533205]
[1764786991946,2.44899356,3131.5,3131.4,0.00303205]
[1764786992246,2.44899356,3131.5,3131.4,1.63533205]
[1764786992445,2.44899356,3131.5,3131.4,0.75033205]
[1764786993156,1.5908,3131.2,3131.1,0.0047866]
[1764786993338,1.5908,3131.2,3130.3,4.7332]
[1764786993339,0.5418,3131.0,3130.3,4.7332]
[1764786993544,1.27342042,3130.9,3130.3,4.7332]
[1764786994047,0.8447,3130.4,3130.3,4.73716993]
[1764786994652,3.2647833,3130.4,3130.3,0.00396993]
[1764786994951,3.26477721,3130.4,3130.3,0.86016993]
[1764786995153,2.94606216,3130.4,3130.3,0.86016993]
[1764786995741,2.94606216,3130.4,3130.3,0.00396993]
[1764786996145,2.94606216,3130.4,3130.3,0.86016993]
[1764786996345,2.94606216,3130.4,3130.3,0.00396993]
[1764786996649,2.94606216,3130.4,3130.0,0.0047866]
[1764786996848,2.91752042,3130.1,3130.0,0.0047866]
[1764786997047,2.94606216,3130.1,3130.0,0.0047866]
[1764786997850,2.94606216,3130.1,3130.0,0.00795544]
[1764786998445,1.67264174,3130.1,3130.0,0.00795544]
[1764786999747,1.67264174,3130.1,3130.0,0.83985544]
[1764786999942,1.67264174,3130.1,3130.0,0.00795544]
[1764787001953,1.6845,3129.6,3129.5,3.2078]
[1764787002247,0.02854174,3129.6,3129.5,2.1637]
[1764787003055,0.02854174,3129.6,3129.5,8.16647416]
[1764787003252,2.2263,3130.5,3130.4,1.6524]
[1764787003555,3.2078,3130.6,3130.5,1.6524]
[1764787003556,4.0319,3130.6,3130.5,1.6524]
[1764787004047,4.8923,3130.6,3130.5,0.8319]
[1764787004251,2.1846,3130.5,3130.4,1.6524]
[1764787006253,2.1846,3130.5,3130.4,0.8319]
[1764787007056,2.1846,3130.5,3130.4,1.6524]
[1764787007257,0.8241,3130.5,3130.4,1.6524]
[1764787007656,2.1846,3130.5,3130.4,1.6524]
[1764787007953,1.6892866,3130.9,3130.8,1.6524]
[1764787008351,1.6892866,3130.9,3130.8,0.8319]
[1764787008659,1.6892866,3130.9,3130.8,1.6524]
[1764787008854,0.0047866,3130.9,3130.8,1.6524]
[1764787010662,0.8288866,3130.9,3130.8,1.6524]
[1764787011159,0.0047866,3130.9,3130.8,1.6524]
[1764787013164,4.0319,3131.4,3131.3,1.6524]
[1764787014256,3.2078,3131.4,3131.3,1.6524]
[1764787014461,4.8923,3131.4,3131.3,1.6524]
[1764787015658,4.0319,3131.4,3131.3,1.6524]
[1764787016161,5.23918068,3131.4,3131.3,1.6524]
[1764787017864,4.8923,3131.4,3131.3,1.6524]
[1764787018051,4.0319,3131.4,3131.3,1.6524]
[1764787018257,3.2078,3131.4,3131.3,1.6524]
[1764787018856,0.0047866,3131.7,3131.6,1.6524]
[1764787019059,0.0047866,3131.7,3131.6,5.4404]
[1764787019864,0.00713506,3131.7,3131.6,5.4404]
[1764787022664,0.00713506,3131.7,3131.6,4.6199]
[1764787022665,1.69163506,3131.7,3131.6,4.6199]
[1764787022965,0.00713506,3131.7,3131.6,5.4404]
[1764787024562,0.83123506,3131.7,3131.6,5.4404]
[1764787024866,0.00713506,3131.7,3131.6,5.4404]
[1764787027268,3.9769,3132.3,3132.2,1.6817]
[1764787027467,0.34706334,3132.3,3132.2,1.6817]
[1764787027670,4.8147,3132.7,3132.6,1.6817]
[1764787027869,5.16173753,3132.7,3132.6,1.6817]
[1764787028169,5.16548158,3132.7,3132.6,0.81171095]
[1764787028366,11.16548158,3132.7,3132.6,0.00281095]
[1764787028570,1.6069,3132.2,3132.1,3.788]
[1764787028871,1.6069,3132.2,3132.1,4.5969]
[1764787029066,1.6069,3132.2,3132.1,5.4697]
[1764787029669,1.6069,3132.2,3132.1,5.47377497]
[1764787029968,2.0792,3132.5,3132.4,1.6817]
[1764787030170,1.6069,3132.2,3132.1,5.47377497]
[1764787030370,2.85282048,3132.2,3132.1,5.47377497]
[1764787031666,1.6069,3132.2,3132.1,5.47377497]
[1764787031968,3.21154405,3132.7,3132.3,1.6817]
[1764787032171,0.7691,3132.4,3132.3,1.6817]
[1764787032376,1.95414614,3132.4,3132.3,1.6817]
[1764787032570,1.11634614,3132.4,3132.3,1.6817]
[1764787033474,1.95438901,3132.4,3132.3,1.6817]
[1764787033863,0.34748901,3132.4,3132.3,1.6817]
[1764787034070,1.6069,3132.6,3132.5,1.6817]
[1764787034274,1.95435085,3132.6,3132.5,1.6817]
[1764787034578,2.643856,3132.6,3132.5,1.6817]
[1764787034765,1.95435085,3132.6,3132.5,1.6817]
[1764787034970,2.64384829,3132.6,3132.5,0.8089]
[1764787035470,2.64384829,3132.6,3132.5,1.6817]
[1764787035876,2.64384829,3132.6,3132.5,0.8089]
[1764787036678,1.95435085,3132.6,3132.5,1.6817]
[1764787038376,0.34745085,3132.6,3132.5,2.1818]
[1764787038576,0.77284405,3132.7,3132.6,1.6817]
[1764787038773,1.12052957,3132.7,3132.6,1.6817]
[1764787039381,1.95832957,3132.7,3132.6,1.6817]
[1764787039579,0.7691,3132.4,3132.3,5.4697]
[1764787040177,1.6069,3132.4,3132.3,5.4697]
[1764787041776,1.6069,3132.4,3132.3,4.5969]
[1764787042483,1.6069,3132.4,3132.3,5.4697]
[1764787043581,1.6069,3132.4,3132.3,4.5969]
[1764787043980,1.6069,3132.4,3132.3,3.788]
[1764787044180,1.6069,3132.4,3132.3,4.5969]
[1764787044574,1.6069,3132.2,3132.1,1.68577497]
[1764787045179,0.7691,3132.2,3132.1,1.68577497]
[1764787045975,2.0792,3132.5,3132.4,0.8089]
[1764787046181,1.80826364,3132.5,3132.4,1.6817]
[1764787046581,1.03916364,3132.5,3132.4,1.6817]
[1764787046884,1.80826364,3132.5,3132.4,1.6817]
[1764787048385,2.64606364,3132.5,3132.4,1.6817]
[1764787050782,1.03916364,3132.5,3132.4,1.6817]
[1764787050983,1.80826364,3132.5,3132.4,1.6817]
[1764787052087,1.03916364,3132.5,3132.4,1.6817]
[1764787052688,1.6069,3132.4,3132.3,3.2078]
[1764787052886,1.95505397,3132.4,3132.3,4.0167]
[1764787053086,1.95505397,3132.4,3132.3,3.2078]
[1764787053385,1.531,3132.2,3132.1,0.00407497]
[1764787053579,2.5713077,3132.2,3132.1,1.49217497]
[1764787053780,1.0403077,3132.2,3132.1,1.49217497]
[1764787053984,1.7702077,3132.2,3132.1,1.49217497]
[1764787054281,2.5713077,3132.2,3132.1,0.72877497]
[1764787054486,2.5713077,3132.2,3132.1,0.00407497]
[1764787059091,2.0104,3131.5,3131.4,3.2078]
[1764787059288,3.0507077,3131.5,3131.4,3.2078]
[1764787060097,3.0507077,3131.5,3131.4,3.21060354]
[1764787060494,3.0507077,3131.5,3131.4,3.94840354]
[1764787060989,0.63451,3132.0,3131.9,1.4942]
[1764787060990,2.0104,3132.0,3131.9,1.4942]
[1764787061190,1.0360057,3132.0,3131.9,4.702]
[1764787061398,0.75584405,3132.7,3132.6,1.4942]
[1764787061597,1.53924405,3132.7,3132.6,1.4942]
[1764787062199,0.75584405,3132.7,3132.6,1.4942]
[1764787062597,1.53924405,3132.7,3132.6,1.4942]
[1764787062896,1.5355,3132.4,3132.3,4.702]
[1764787063293,0.7521,3132.4,3132.3,4.702]
[1764787063494,1.24551422,3132.5,3132.3,4.702]
[1764787063695,1.99761422,3132.5,3132.4,1.4942]
[1764787064093,2.78101422,3132.5,3132.4,1.4942]
[1764787064297,3.25591422,3132.5,3132.4,1.4942]
[1764787064594,1.53924405,3132.7,3132.6,1.4942]
[1764787064797,1.53924405,3132.7,3132.6,0.7378]
[1764787065297,1.53924405,3132.7,3132.6,1.4942]
[1764787065500,0.75584405,3132.7,3132.6,1.4942]
[1764787066594,0.00374405,3132.7,3132.6,1.4942]
[1764787067295,1.53924405,3132.7,3132.6,1.4942]
[1764787067492,1.53924405,3132.7,3132.6,0.7378]
[1764787067991,1.53924405,3132.7,3132.6,1.4942]
[1764787068692,1.5355,3132.4,3132.3,4.702]
[1764787068897,0.7521,3132.4,3132.3,4.702]
[1764787069099,1.5355,3132.4,3132.3,4.702]
[1764787069294,1.5355,3132.4,3132.3,3.2078]
[1764787069598,1.5355,3132.0,3131.9,1.4942]
[1764787070187,0.7521,3132.0,3131.9,1.4942]
[1764787071602,1.5355,3132.0,3131.9,1.4942]
[1764787072098,2.0104,3132.0,3131.8,3.2078]
[1764787072299,0.7521,3131.9,3131.8,4.702]
[1764787072899,0.4749,3132.5,3131.8,4.702]
[1764787073400,1.03019073,3132.4,3131.8,4.702]
[1764787073604,0.7521,3131.9,3131.8,4.702]
[1764787073798,1.5355,3131.9,3131.8,4.702]
[1764787074713,0.7521,3132.0,3131.9,1.4942]
[1764787075206,43.21128348,3132.5,3132.4,1.4942]
[1764787075207,2.0104,3132.5,3132.4,1.4942]
[1764787075396,3.04058495,3132.5,3132.4,1.4942]
[1764787076005,3.04058495,3132.5,3132.4,0.7378]
[1764787076500,3.04058495,3132.5,3132.4,1.4942]
[1764787076702,3.04058495,3132.5,3132.0,0.4594]
[1764787077007,2.56568495,3132.4,3132.3,1.4942]
[1764787077207,1.88074172,3132.4,3132.3,1.4942]
[1764787079207,0.7521,3131.9,3131.8,4.702]
[1764787079409,0.7521,3132.0,3131.9,1.4942]
[1764787079702,1.09736451,3132.0,3131.9,1.4942]
[1764787080007,1.88076451,3132.0,3131.9,1.4942]
[1764787080711,1.5355,3132.0,3131.9,1.4942]
[1764787081106,3.2078,3132.4,3131.9,1.4942]
[1764787081307,3.9599,3132.4,3132.3,1.4942]
[1764787081510,5.77354735,3132.4,3132.3,1.4942]
[1764787082013,2.56574735,3132.4,3132.3,0.7378]
[1764787082708,2.56574735,3132.4,3132.3,1.4942]
[1764787082907,1.78234735,3132.4,3132.3,1.4942]
[1764787084500,1.78231703,3132.4,3132.3,1.4942]
[1764787085006,2.56571703,3132.4,3132.3,1.4942]
[1764787085310,1.78231703,3132.4,3132.3,1.4942]
[1764787085516,2.56061703,3132.4,3132.3,1.4942]
[1764787085708,1.78231703,3132.4,3132.3,1.4942]
[1764787086013,1.9936,3131.5,3131.4,0.00280354]
[1764787086201,1.5628,3131.1,3131.0,4.7141866]
[1764787086403,0.34525344,3131.1,3131.0,5.1729866]
[1764787086709,1.5628,3131.9,3131.8,0.751]
[1764787086902,2.24768101,3131.9,3131.8,0.751]
[1764787087102,2.24768101,3131.9,3131.8,0.75379089]
[1764787087305,2.24768101,3131.9,3131.8,0.00279089]
[1764787087505,2.24768101,3131.9,3131.8,0.75379089]
[1764787088712,2.24768101,3131.9,3131.8,1.50439089]
[1764787089611,1.46938101,3131.9,3131.8,1.50439089]
[1764787089816,2.24768101,3131.9,3131.8,1.50439089]
[1764787090516,1.5628,3131.9,3131.8,1.50439089]
[1764787092715,0.7845,3131.9,3131.8,1.50439089]
[1764787092916,0.0047866,3132.2,3132.1,1.5016]
[1764787093213,0.00374405,3132.7,3132.6,0.751]
[1764787093214,1.56654405,3132.7,3132.6,0.751]
[1764787093417,0.00374405,3132.7,3132.4,3.9584]
[1764787093616,1.56654405,3132.7,3132.6,1.5016]
[1764787098526,1.9082488,3132.7,3132.6,1.5016]
[1764787099515,1.9936,3132.5,3132.4,3.9588]
[1764787099722,1.9936,3132.5,3132.4,3.2078]
[1764787099926,0.7845,3132.2,3132.1,2.64514294]
[1764787100126,1.5628,3132.2,3132.1,1.5016]
[1764787100428,0.4308,3132.5,3132.0,3.9588]
[1764787100429,1.5628,3132.1,3132.0,3.9588]
[1764787101228,1.5628,3132.1,3132.0,4.7094]
[1764787101828,1.5628,3132.1,3132.0,3.2078]
[1764787102026,1.5628,3132.1,3132.0,3.9588]
[1764787102830,1.5628,3132.1,3132.0,4.7094]
[1764787103532,1.2153,3132.5,3132.4,0.751]
[1764787103730,0.7845,3132.1,3132.0,5.1577]
[1764787106034,1.9936,3132.5,3132.4,0.751]
[1764787106230,2.3353111,3132.5,3132.4,0.751]
[1764787106426,2.3353111,3132.5,3132.4,1.5016]
[1764787106631,2.3353111,3132.5,3132.4,0.751]
[1764787107232,2.3353111,3132.5,3132.4,1.5016]
[1764787107534,2.3353111,3132.5,3132.1,3.788]
[1764787107739,1.5628,3132.2,3132.1,5.2896]
[1764787108047,0.7845,3132.2,3132.1,5.2896]
[1764787109238,1.5628,3132.2,3132.1,5.2896]
[1764787109940,1.5628,3132.2,3132.1,4.539]
[1764787111047,1.5628,3132.2,3132.1,5.2896]
[1764787111739,0.7845,3132.2,3132.1,5.2896]
[1764787111940,1.9936,3132.5,3132.4,0.751]
[1764787112140,2.33534272,3132.5,3132.4,1.5016]
[1764787113138,0.34174272,3132.5,3132.4,1.5016]
[1764787113433,1.55564405,3132.7,3132.6,1.4756]
[1764787113640,1.89736891,3132.7,3132.6,1.4756]
[1764787114232,1.89736891,3132.7,3132.6,0.751]
[1764787114428,1.89736891,3132.7,3132.6,1.4756]
[1764787115542,1.12996891,3132.7,3132.6,1.4756]
[1764787115730,2.58541699,3132.7,3132.6,1.4756]
[1764787117039,1.7194423,3133.8,3133.4,1.5033]
[1764787117238,1.7194423,3133.8,3133.0,0.4588]
[1764787117239,1.02973278,3133.7,3133.6,1.5033]
[1764787117436,2.58443278,3133.7,3133.6,1.5033]
[1764787117834,1.89648542,3133.7,3133.6,1.5033]
[1764787118241,1.9002907,3133.7,3133.6,1.5033]
[1764787121142,5.04791226,3133.7,3133.6,0.7549]
[1764787121341,0.7242,3133.4,3133.3,1.4958866]
[1764787123445,1.4948,3133.4,3133.3,1.4958866]
[1764787125549,1.4948,3133.4,3133.3,0.7596866]
[1764787125953,0.7242,3133.4,3133.3,1.4958866]
[1764787126153,1.4948,3133.4,3133.3,1.4958866]
[1764787126451,0.7242,3133.4,3133.3,1.4958866]
[1764787127449,0.7242,3133.5,3133.4,1.4911]
[1764787127657,4.70640528,3133.7,3133.6,1.4911]
[1764787127953,0.00380528,3133.7,3133.6,1.4911]
[1764787128457,3.2078,3134.1,3134.0,1.4911]
[1764787128657,3.932,3134.1,3134.0,1.4911]
[1764787128857,1.4948,3133.6,3133.5,4.6989]
[1764787129050,0.7242,3133.6,3133.5,4.6989]
[1764787129454,0.72653527,3133.6,3133.5,4.70143394]
[1764787130764,1.49713527,3133.6,3133.5,3.21033394]
[1764787131059,1.49713527,3133.6,3133.5,3.96523394]
[1764787131650,1.49713527,3133.6,3133.5,4.70143394]
[1764787132356,1.49713527,3133.6,3133.5,3.21033394]
[1764787132563,1.83789364,3133.6,3133.5,0.00253394]
[1764787134364,1.4948,3133.4,3133.3,0.0047866]
[1764787134563,1.83555837,3133.4,3133.3,0.0047866]
[1764787135160,1.83555837,3133.4,3132.7,4.6989]
[1764787135161,1.4948,3132.8,3132.7,4.6989]
[1764787135564,1.4948,3132.8,3132.7,3.96671926]
[1764787135766,1.4948,3132.8,3132.7,4.70291926]
[1764787135954,0.4319,3133.0,3132.7,4.70291926]
[1764787136159,0.7242,3133.0,3132.9,1.4911]
[1764787136350,1.4948,3133.0,3132.9,1.4911]
[1764787136551,0.7242,3133.0,3132.9,1.4911]
[1764787136763,0.0047866,3133.1,3133.0,1.9229]
[1764787136966,0.7289866,3133.1,3133.0,1.9229]
[1764787137153,0.7289866,3133.1,3133.0,1.4911]
[1764787137560,0.0047866,3133.1,3133.0,1.9229]
[1764787139063,0.0047866,3133.1,3133.0,1.4911]
[1764787139064,1.4995866,3133.1,3133.0,1.4911]
[1764787139258,1.4995866,3133.1,3133.0,0.7549]
[1764787139864,1.4948,3132.8,3132.7,3.08071401]
[1764787140066,1.4948,3132.8,3132.4,1.4958866]
[1764787140067,1.1561,3132.5,3132.4,1.4958866]
[1764787140267,2.26793852,3132.5,3132.4,1.4958866]
[1764787140966,2.26793852,3132.5,3132.4,1.49833872]
[1764787141166,0.00233527,3133.6,3132.5,0.4318]
[1764787141374,0.4319,3134.0,3133.5,4.3504844]
[1764787141672,0.4319,3134.5,3133.9,3.2078]
[1764787141859,0.4319,3134.5,3134.4,3.2078]
[1764787142064,1.1561,3134.5,3134.4,3.2078]
[1764787142362,0.43451141,3134.5,3134.4,3.2078]
[1764787144369,0.51271141,3134.5,3134.4,3.2078]
[1764787145069,1.41221141,3134.5,3134.4,3.2078]
[1764787145768,0.51271141,3134.5,3134.4,3.2078]
[1764787146072,1.41221141,3134.5,3134.4,3.2078]
[1764787146671,2.19851141,3134.5,3134.4,3.2078]
[1764787149469,1.41221141,3134.5,3134.4,3.2078]
[1764787149664,0.51271141,3134.5,3134.4,3.2078]
[1764787151376,2.19851141,3134.5,3134.4,3.2078]
[1764787154179,1.41221141,3134.5,3134.4,3.2078]
[1764787154774,2.19851141,3134.5,3134.4,3.2078]
[1764787155675,1.41221141,3134.5,3134.4,3.2078]
[1764787156175,2.19851141,3134.5,3134.4,3.2078]
[1764787156370,1.41221141,3134.5,3134.4,3.2078]
[1764787157777,2.19851141,3134.5,3134.4,3.2078]
[1764787163582,0.51271141,3134.5,3134.4,3.2078]
[1764787163979,1.41221141,3134.5,3134.4,3.2078]
[1764787164981,2.19851141,3134.5,3134.4,3.2078]
[1764787167985,1.41221141,3134.5,3134.4,3.2078]
[1764787168283,2.19851141,3134.5,3134.4,3.2078]
[1764787168687,0.51271141,3134.5,3134.4,3.2078]
[1764787168887,1.41221141,3134.5,3134.4,3.2078]
[1764787170485,0.51271141,3134.5,3134.4,3.2078]
[1764787171078,0.51271141,3134.5,3134.4,4.92089003]
[1764787171287,0.85196749,3134.5,3134.4,4.92089003]
[1764787176894,1.68136749,3134.5,3134.4,4.92089003]
[1764787177191,0.85196749,3134.5,3134.4,4.92089003]
[1764787178691,0.51271141,3134.5,3134.4,6.32423981]
[1764787178901,0.4319,3135.0,3134.4,4.61114978]
[1764787179092,0.4319,3135.0,3134.9,3.2078]
[1764787179392,1.54087939,3135.0,3134.9,3.2078]
[1764787179589,0.77107939,3135.0,3134.9,3.2078]
[1764787179785,0.77107939,3135.0,3134.9,4.35192201]
[1764787179987,0.77395837,3135.0,3134.9,4.3559047]
[1764787180687,0.43477898,3135.0,3134.9,3.21178269]
[1764787180884,0.43477898,3135.0,3134.9,4.92796571]
[1764787181290,1.20457898,3135.0,3134.9,3.21178269]
[1764787182197,1.20457898,3135.0,3134.9,4.35436859]
[1764787183297,1.99707898,3135.0,3134.9,4.35436859]
[1764787183496,1.20457898,3135.0,3134.9,4.35436859]
[1764787184497,1.99707898,3135.0,3134.9,4.35436859]
[1764787185698,1.99707898,3135.0,3134.9,3.21178269]
[1764787185999,2.33574516,3135.0,3134.9,3.21178269]
[1764787188000,0.4319,3135.5,3134.9,5.69950225]
[1764787188301,1.2017,3135.5,3135.4,3.2078]
[1764787189097,1.2048451,3135.5,3135.4,3.2078]
[1764787189293,1.9973451,3135.5,3135.4,3.2078]
[1764787195499,3.24120488,3135.5,3135.4,3.2078]
[1764787195696,1.2048451,3135.5,3135.4,3.2078]
[1764787195897,1.9973451,3135.5,3135.4,3.2078]
[1764787196094,1.2048451,3135.5,3135.4,3.2078]
[1764787196691,0.4350451,3135.5,3135.4,3.2078]
[1764787196894,1.9973451,3135.5,3135.4,3.2078]
[1764787197997,0.4350451,3135.5,3135.4,3.2078]
[1764787198206,1.9973451,3135.5,3135.4,3.2078]
[1764787199004,0.4350451,3135.5,3135.4,3.2078]
[1764787200105,1.5623,3135.4,3135.3,3.788]
[1764787200305,0.4350451,3135.5,3135.0,3.2078]
[1764787200306,1.5623,3135.1,3135.0,3.2078]
[1764787200509,0.4350451,3135.5,3135.0,3.2078]
[1764787200510,0.7698,3135.4,3135.0,3.2078]
[1764787200808,1.5623,3135.1,3135.0,3.2078]
[1764787200994,0.7698,3135.1,3135.0,3.2078]
[1764787201194,0.4350451,3135.5,3135.0,3.2078]
[1764787201399,1.9973451,3135.5,3135.4,3.2078]
[1764787201597,2.33561914,3135.5,3135.4,3.2078]
[1764787205412,1.5344,3135.1,3135.0,3.2078]
[1764787205621,1.87291659,3135.1,3135.0,3.2078]
[1764787206018,0.4671,3134.5,3134.2,1.14307424]
[1764787206220,0.4671,3134.5,3133.0,0.4691]
[1764787206221,1.27120373,3134.2,3133.0,0.4691]
[1764787206521,4.47900373,3133.1,3132.6,6.4464901]
[1764787206721,4.47900373,3132.7,3132.6,5.6665901]
[1764787207021,5.61072146,3132.7,3132.6,0.00277219]
[1764787208520,4.33951773,3132.7,3132.6,0.00277219]
[1764787208721,4.33951773,3132.7,3132.6,7.26006229]
[1764787208912,3.21038036,3132.7,3132.6,7.26006229]
[1764787212322,3.21038036,3132.7,3132.6,0.78267219]
[1764787212518,3.21038036,3132.7,3132.6,0.00277219]
[1764787213227,0.1596,3132.2,3132.0,0.4691]
[1764787213421,3.2078,3132.1,3132.0,0.12408688]
[1764787213623,3.2078,3132.1,3132.0,0.90398688]
[1764787213821,3.2078,3132.1,3132.0,1.71478688]